[Event "FIDE WCCC Open-10 2024"]
[Site "Montesilvano"]
[Date "2024.11.18"]
[Round "4.17"]
[White "Xia, Joshua"]
[Black "Katta, Sriansh"]
[Result "1-0"]
[ECO "B32"]
[WhiteElo "2052"]
[BlackElo "1766"]
[Annotator "RC"]
[PlyCount "119"]
[EventDate "2024.11.18"]
[EventType "swiss"]
[EventCountry "ITA"]
[SourceTitle "playchess.com"]
[Source "ChessBase"]
[SourceQuality "1"]
[TimeControl "5400+30"]

1. e4 {[%emt 0:00:13]} c5 {[%emt 0:00:03]} 2. Nf3 {[%emt 0:00:09]} Nc6 {[%emt 0:00:04]} 3. d4 {[%emt 0:00:05]} cxd4 {[%emt 0:00:04]} 4. Nxd4 {[%emt 0:00:05]} e5 {[%emt 0:00:03]} 5. Nb5 {[%emt 0:00:06]} d6 {[%emt 0:00:04]} 6. c4 {[%emt 0:00:04]} Be6 {[%emt 0:00:03]} 7. Be2 {[%emt 0:02:57]} g6 {[%emt 0:00:07]} 8. O-O {[%emt 0:00:23]} a6 {[%emt 0:00:03]} 9. N5c3 {[%emt 0:00:12]} Bg7 {[%emt 0:00:09]} 10. Be3 {[%emt 0:00:38]} Nf6 {[%emt 0:00:14]} 11. Qd2 {[%emt 0:06:41]} Rc8 {[%emt 0:02:51]} 12. Na3 {[%emt 0:00:37]} O-O {[%emt 0:00:15]} 13. Rad1 {[%emt 0:00:19]} Nd4 {[%emt 0:00:24]} 14. Bxd4 {[%emt 0:02:13]} exd4 {[%emt 0:00:01]} 15. Qxd4 {[%emt 0:00:22]} Nd5 {[%emt 0:00:18]} 16. Qd2 {[%emt 0:02:55]} Nxc3 {[%emt 0:00:15]} 17. bxc3 {[%emt 0:00:06]} Qa5 {[%emt 0:00:14]} 18. Qc1 {[%emt 0:11:54]} Bxc3 {[%emt 0:03:44]} 19. Rxd6 {[%emt 0:02:46]} Bb4 {[%emt 0:00:48]} 20. Rd3 {[%emt 0:00:18]} b5 {[%emt 0:02:16]} 21. Rg3 {[%emt 0:07:40]} bxc4 {[%emt 0:10:36]} 22. Nc2 {[%emt 0:03:55]} Bd6 {[%emt 0:05:15]} 23. f4 {[%emt 0:00:46]} Qc7 {[%emt 0:06:10]} 24. Kh1 {[%emt 0:03:18]} Kh8 {[%emt 0:11:12]} 25. Nd4 {[%emt 0:02:02]} Qc5 {[%emt 0:03:05]} 26. Qc3 {[%emt 0:05:34]} Qb4 {[%emt 0:02:00]} 27. Nxe6+ {[%emt 0:01:31]} Qxc3 {[%emt 0:00:01]} 28. Rxc3 {[%emt 0:00:13]} fxe6 {[%emt 0:00:04]} 29. e5 {[%emt 0:00:15]} Bb8 {[%emt 0:04:06]} 30. Rxc4 {[%emt 0:00:28]} Rxc4 {[%emt 0:00:12]} 31. Bxc4 {[%emt 0:00:04]} a5 {[%emt 0:00:16]} 32. g3 {[%emt 0:00:42]} g5 {[%emt 0:06:57]} 33. Kg2 {[%emt 0:01:10]} gxf4 {[%emt 0:01:08]} 34. gxf4 {[%emt 0:00:42]} Re8 {[%emt 0:05:20]} 35. Rb1 {[%emt 0:01:24]} Ba7 {[%emt 0:00:32]} 36. Kf3 {[%emt 0:01:53]} Bc5 {[%emt 0:04:11]} 37. Rb7 {[%emt 0:02:03]} Re7 {[%emt 0:05:25]} 38. Rxe7 {[%emt 0:01:52]} Bxe7 {[%emt 0:00:01]} 39. Bxe6 {[%emt 0:00:08]} Kg7 {[%emt 0:00:20]} 40. Ke4 {[%emt 0:00:29]} h6 {[%emt 0:00:43]} 41. Bc4 {[%emt 0:00:43]} Bb4 {[%emt 0:01:23]} 42. Kd5 {[%emt 0:00:49]} Kf7 {[%emt 0:00:59]} 43. Kc6+ {[%emt 0:00:45]} Kg6 {[%emt 0:01:19]} 44. Bd3+ {[%emt 0:00:27]} Kf7 {[%emt 0:00:07]} 45. Kd7 {[%emt 0:00:15]} Kf8 {[%emt 0:00:29]} 46. f5 {[%emt 0:00:32]} Bc3 {[%emt 0:00:13]} 47. Ke6 {[%emt 0:00:11]} h5 {[%emt 0:01:08]} 48. f6 {[%emt 0:00:34]} h4 {[%emt 0:00:30]} 49. h3 {[%emt 0:00:03]} Bb2 {[%emt 0:00:15]} 50. Kf5 {[%emt 0:00:06]} Ba3 {[%emt 0:00:39]} 51. e6 {[%emt 0:00:06]} Ke8 {[%emt 0:00:04]} 52. Bb5+ {[%emt 0:00:05]} Kf8 {[%emt 0:00:06]} 53. e7+ {[%emt 0:00:04]} Bxe7 {[%emt 0:00:02]} 54. fxe7+ {[%emt 0:00:06]} Kxe7 {[%emt 0:00:02]} 55. Kg4 {[%emt 0:00:05]} Kf7 {[%emt 0:00:19]} 56. Kxh4 {[%emt 0:00:04]} Kg7 {[%emt 0:00:05]} 57. Kg4 {[%emt 0:00:02]} Kh7 {[%emt 0:00:05]} 58. Kf4 {[%emt 0:00:03]} Kh8 {[%emt 0:00:05]} 59. Ke4 {[%emt 0:00:03]} Kg7 {[%emt 0:00:10]} 60. Kd5 {[%emt 0:00:04]} 1-0

[Event "FIDE WCCC Open-10 2024"]
[Site "Montesilvano"]
[Date "2024.11.18"]
[Round "4.18"]
[White "Babeikin, Kiryl"]
[Black "Filipovs, Sergejs"]
[Result "0-1"]
[ECO "C60"]
[WhiteElo "1721"]
[BlackElo "2012"]
[Annotator "RC"]
[PlyCount "104"]
[EventDate "2024.11.18"]
[EventType "swiss"]
[EventCountry "ITA"]
[SourceTitle "playchess.com"]
[Source "ChessBase"]
[SourceQuality "1"]
[TimeControl "5400+30"]

1. e4 {[%emt 0:00:02]} e5 {[%emt 0:00:05]} 2. Nf3 {[%emt 0:00:09]} Nc6 {[%emt 0:00:07]} 3. Bb5 {[%emt 0:00:07]} Nge7 {[%emt 0:00:05]} 4. O-O {[%emt 0:04:08]} g6 {[%emt 0:00:04]} 5. d4 {[%emt 0:01:14]} exd4 {[%emt 0:00:07]} 6. Nxd4 {[%emt 0:00:07]} Bg7 {[%emt 0:00:06]} 7. Be3 {[%emt 0:00:37]} O-O {[%emt 0:00:11]} 8. Nc3 {[%emt 0:00:22]} d5 {[%emt 0:05:50]} 9. exd5 {[%emt 0:10:10]} Nb4 {[%emt 0:00:27]} 10. Bg5 {[%emt 0:06:42]} h6 {[%emt 0:00:54]} 11. Bxe7 {[%emt 0:01:19]} Qxe7 {[%emt 0:00:07]} 12. a3 {[%emt 0:00:35]} Bxd4 {[%emt 0:00:21]} 13. axb4 {[%emt 0:00:03]} Bg7 {[%emt 0:00:39]} 14. Ra4 {[%emt 0:07:45]} Bf5 {[%emt 0:06:01]} 15. Bd3 {[%emt 0:03:56]} Bd7 {[%emt 0:04:20]} 16. b5 {[%emt 0:00:15]} Qc5 {[%emt 0:03:57]} 17. Rc4 {[%emt 0:02:43]} Qb6 {[%emt 0:06:50]} 18. h4 {[%emt 0:04:38]} h5 {[%emt 0:02:31]} 19. Qf3 {[%emt 0:03:27]} Rae8 {[%emt 0:06:05]} 20. Ra1 {[%emt 0:15:39]} Bg4 {[%emt 0:01:14]} 21. Qf4 {[%emt 0:02:10]} Be5 {[%emt 0:02:50]} 22. Qd2 {[%emt 0:00:24]} Qf6 {[%emt 0:03:25]} 23. Qg5 {[%emt 0:00:19]} Qb6 {[%emt 0:02:46]} 24. Rxg4 {[%emt 0:16:11]} hxg4 {[%emt 0:00:40]} 25. h5 {[%emt 0:00:05]} g3 {[%emt 0:08:16]} 26. hxg6 {[%emt 0:06:25]} Qxf2+ {[%emt 0:00:13]} 27. Kh1 {[%emt 0:00:12]} Qf6 {[%emt 0:07:03]} 28. Qxf6 {[%emt 0:03:30]} Bxf6 {[%emt 0:00:07]} 29. Ne4 {[%emt 0:01:20]} Kg7 {[%emt 0:03:33]} 30. Nxg3 {[%emt 0:03:39]} Rh8+ {[%emt 0:00:20]} 31. Kg1 {[%emt 0:00:22]} Bd4+ {[%emt 0:00:05]} 32. Kf1 {[%emt 0:00:03]} fxg6 {[%emt 0:00:05]} 33. Ra4 {[%emt 0:00:59]} Bxb2 {[%emt 0:02:23]} 34. Ne4 {[%emt 0:04:01]} Rh1+ {[%emt 0:04:41]} 35. Ke2 {[%emt 0:00:34]} Ra1 {[%emt 0:00:19]} 36. Rc4 {[%emt 0:00:35]} Be5 {[%emt 0:00:29]} 37. Ng5 {[%emt 0:00:16]} Bd6+ {[%emt 0:04:03]} 38. Ne6+ {[%emt 0:00:04]} Kf6 {[%emt 0:00:11]} 39. Rg4 {[%emt 0:00:07]} g5 {[%emt 0:00:33]} 40. Kd2 {[%emt 0:00:15]} Rg8 {[%emt 0:01:38]} 41. Bh7 {[%emt 0:00:53]} Rh8 {[%emt 0:00:56]} 42. Bd3 {[%emt 0:01:41]} Rh4 {[%emt 0:01:08]} 43. Rxh4 {[%emt 0:01:15]} gxh4 {[%emt 0:26:15]} 44. c4 {[%emt 0:00:18]} Ra2+ {[%emt 0:00:00]} 45. Bc2 {[%emt 0:00:08]} b6 {[%emt 0:00:00]} 46. Kc3 {[%emt 0:01:21]} Be5+ {[%emt 0:00:00]} 47. Kd2 {[%emt 0:00:19]} Bd6 {[%emt 0:00:00]} 48. Kc3 {[%emt 0:00:15]} Ra3+ {[%emt 0:00:00]} 49. Kd2 {[%emt 0:00:18]} Rg3 {[%emt 0:00:00]} 50. Be4 {[%emt 0:00:10]} Ke5 {[%emt 0:00:00]} 51. Bf3 {[%emt 0:01:40]} h3 {[%emt 0:00:00]} 52. Ke3 {[%emt 0:01:43]} hxg2 {[%emt 0:04:30]} 0-1

[Event "FIDE WCCC Open-10 2024"]
[Site "Montesilvano"]
[Date "2024.11.18"]
[Round "4.18"]
[White "Bartash, Saveli"]
[Black "Park, Jaeik B"]
[Result "1-0"]
[ECO "B43"]
[WhiteElo "1661"]
[BlackElo "1872"]
[Annotator "NA RC"]
[PlyCount "53"]
[EventDate "2024.11.18"]
[EventType "swiss"]
[EventCountry "ITA"]
[SourceTitle "playchess.com"]
[Source "ChessBase"]
[SourceQuality "1"]
[TimeControl "5400+30"]

1. e4 {[%emt 0:00:04]} c5 {[%emt 0:00:07]} 2. Nf3 {[%emt 0:00:19]} e6 {[%emt 0:00:07]} 3. d4 {[%emt 0:00:09]} cxd4 {[%emt 0:00:12]} 4. Nxd4 {[%emt 0:00:15]} Nc6 {[%emt 0:00:08]} 5. Nc3 {[%emt 0:00:11]} Qc7 {[%emt 0:00:12]} 6. Nb3 {[%emt 0:00:37]} a6 {[%emt 0:00:46]} 7. Bd3 {[%emt 0:00:32]} Nf6 {[%emt 0:00:53]} 8. f4 {[%emt 0:01:34]} d6 {[%emt 0:02:00]} 9. O-O {[%emt 0:01:49]} Be7 {[%emt 0:02:47]} 10. Be3 {[%emt 0:06:31]} Bd7 {[%emt 0:04:25]} 11. Qe1 {[%emt 0:06:05]} Ng4 {[%emt 0:16:05]} 12. Bd2 {[%emt 0:03:03]} Qb6+ {[%emt 0:06:50]} 13. Kh1 {[%emt 0:01:13]} h5 {[%emt 0:02:36]} 14. Qe2 {[%emt 0:07:05]} O-O-O {[%emt 0:04:42]} 15. a4 {[%emt 1:08:33]} Rdg8 {[%emt 0:02:46]} 16. a5 {[%emt 0:00:00]} Qa7 {[%emt 0:00:33]} 17. Na4 {[%emt 0:00:00]} Bd8 {[%emt 0:02:07]} 18. Bc3 {[%emt 0:00:00]} Rh6 {[%emt 0:05:10]} 19. Nd2 {[%emt 0:00:00]} Nd4 {[%emt 0:02:09]} 20. Bxd4 {[%emt 0:00:00]} Qxd4 {[%emt 0:00:08]} 21. c3 {[%emt 0:00:00]} Qf6 {[%emt 0:00:52]} 22. Bxa6 {[%emt 0:00:00]} Qh4 {[%emt 0:11:51]} 23. Nf3 {[%emt 0:00:00]} Qf6 {[%emt 0:02:13]} 24. Qc4+ {[%emt 0:00:00]} Bc6 {[%emt 0:00:48]} 25. Qxc6+ {[%emt 0:00:00]} Bc7 {[%emt 0:00:50]} 26. Nb6+ {[%emt 0:00:00]} Kd8 {[%emt 0:00:29]} 27. Qd7# {[%emt 0:00:00]} 1-0

[Event "FIDE WCCC Open-10 2024"]
[Site "Montesilvano"]
[Date "2024.11.18"]
[Round "4.19"]
[White "Ten Dam, Bram"]
[Black "Azimov, Yasin"]
[Result "0-1"]
[ECO "B33"]
[WhiteElo "2012"]
[BlackElo "1759"]
[Annotator "RC"]
[PlyCount "94"]
[EventDate "2024.11.18"]
[EventType "swiss"]
[EventCountry "ITA"]
[SourceTitle "playchess.com"]
[Source "ChessBase"]
[SourceQuality "1"]
[TimeControl "5400+30"]

1. e4 {[%emt 0:00:03]} c5 {[%emt 0:00:10]} 2. Nf3 {[%emt 0:00:06]} Nc6 {[%emt 0:00:20]} 3. d4 {[%emt 0:00:09]} cxd4 {[%emt 0:00:10]} 4. Nxd4 {[%emt 0:00:03]} Qb6 {[%emt 0:00:16]} 5. Nb3 {[%emt 0:06:05]} Nf6 {[%emt 0:00:31]} 6. Nc3 {[%emt 0:00:53]} e6 {[%emt 0:00:35]} 7. Be3 {[%emt 0:00:29]} Qc7 {[%emt 0:00:37]} 8. a3 {[%emt 0:04:54]} a6 {[%emt 0:02:59]} 9. Be2 {[%emt 0:00:49]} b5 {[%emt 0:02:08]} 10. f4 {[%emt 0:03:47]} d6 {[%emt 0:03:01]} 11. O-O {[%emt 0:01:25]} Bb7 {[%emt 0:03:57]} 12. Bf3 {[%emt 0:02:06]} Be7 {[%emt 0:02:53]} 13. Qe2 {[%emt 0:03:08]} O-O {[%emt 0:03:27]} 14. Rad1 {[%emt 0:00:36]} Rac8 {[%emt 0:14:39]} 15. Qf2 {[%emt 0:02:42]} b4 {[%emt 0:11:10]} 16. axb4 {[%emt 0:01:42]} Nxb4 {[%emt 0:01:32]} 17. g4 {[%emt 0:07:36]} d5 {[%emt 0:12:30]} 18. e5 {[%emt 0:04:44]} Nd7 {[%emt 0:02:52]} 19. Nd4 {[%emt 0:01:16]} Bc5 {[%emt 0:04:57]} 20. Rc1 {[%emt 0:05:39]} Nb6 {[%emt 0:02:43]} 21. b3 {[%emt 0:03:28]} Nd7 {[%emt 0:07:46]} 22. Nce2 {[%emt 0:04:24]} Bb6 {[%emt 0:04:34]} 23. g5 {[%emt 0:22:56]} Nc5 {[%emt 0:04:22]} 24. Qe1 {[%emt 0:04:25]} Nc6 {[%emt 0:00:44]} 25. Kh1 {[%emt 0:02:33]} Ne4 {[%emt 0:04:56]} 26. c3 {[%emt 0:07:50]} Rfd8 {[%emt 0:03:09]} 27. Rg1 {[%emt 0:00:37]} Ne7 {[%emt 0:01:26]} 28. h4 {[%emt 0:00:34]} Nf5 {[%emt 0:01:26]} 29. Bxe4 {[%emt 0:01:18]} dxe4 {[%emt 0:00:36]} 30. Nxf5 {[%emt 0:00:12]} exf5 {[%emt 0:00:07]} 31. Nd4 {[%emt 0:01:17]} g6 {[%emt 0:00:57]} 32. Kh2 {[%emt 0:00:35]} Bc5 {[%emt 0:02:06]} 33. Qe2 {[%emt 0:03:24]} Bxd4 {[%emt 0:02:19]} 34. Bxd4 {[%emt 0:01:01]} Bd5 {[%emt 0:00:28]} 35. Rb1 {[%emt 0:01:51]} Qc6 {[%emt 0:00:26]} 36. Rb2 {[%emt 0:01:53]} Ra8 {[%emt 0:00:54]} 37. Kg3 {[%emt 0:00:37]} a5 {[%emt 0:00:09]} 38. h5 {[%emt 0:00:35]} Be6 {[%emt 0:00:15]} 39. Rh1 {[%emt 0:00:49]} Rd7 {[%emt 0:00:21]} 40. Ra1 {[%emt 0:00:16]} Rdd8 {[%emt 0:00:48]} 41. Ra3 {[%emt 0:00:46]} a4 {[%emt 0:00:28]} 42. bxa4 {[%emt 0:00:33]} Rxa4 {[%emt 0:00:07]} 43. Rb6 {[%emt 0:00:28]} Qa8 {[%emt 0:00:15]} 44. Rxa4 {[%emt 0:00:31]} Qxa4 {[%emt 0:00:01]} 45. Qb2 {[%emt 0:00:11]} Qd1 {[%emt 0:00:09]} 46. Rb8 {[%emt 0:00:57]} Qf3+ {[%emt 0:00:07]} 47. Kh4 {[%emt 0:00:49]} Qg4# {[%emt 0:00:02]} 0-1

[Event "FIDE WCCC Open-10 2024"]
[Site "Montesilvano"]
[Date "2024.11.18"]
[Round "4.20"]
[White "Ivanovic, Leonid"]
[Black "Kadyr, Aldiyar"]
[Result "1-0"]
[ECO "B87"]
[WhiteElo "1990"]
[BlackElo "1759"]
[Annotator "RC"]
[PlyCount "91"]
[EventDate "2024.11.18"]
[EventType "swiss"]
[EventCountry "ITA"]
[SourceTitle "playchess.com"]
[Source "ChessBase"]
[SourceQuality "1"]
[TimeControl "5400+30"]

1. e4 {[%emt 0:00:15]} c5 {[%emt 0:00:06]} 2. Nf3 {[%emt 0:00:18]} d6 {[%emt 0:00:08]} 3. d4 {[%emt 0:00:19]} cxd4 {[%emt 0:00:06]} 4. Nxd4 {[%emt 0:00:04]} Nf6 {[%emt 0:02:12]} 5. Nc3 {[%emt 0:00:16]} a6 {[%emt 0:01:58]} 6. Bc4 {[%emt 0:00:50]} e6 {[%emt 0:02:23]} 7. Bb3 {[%emt 0:02:30]} Be7 {[%emt 0:01:07]} 8. Qe2 {[%emt 0:05:09]} O-O {[%emt 0:02:54]} 9. Be3 {[%emt 0:02:30]} b5 {[%emt 0:00:24]} 10. a3 {[%emt 0:09:49]} Qa5 {[%emt 0:05:21]} 11. O-O-O {[%emt 0:07:03]} Bb7 {[%emt 0:00:49]} 12. f3 {[%emt 0:01:23]} Nbd7 {[%emt 0:03:47]} 13. g4 {[%emt 0:07:12]} Nc5 {[%emt 0:22:25]} 14. g5 {[%emt 0:20:16]} Nfd7 {[%emt 0:01:58]} 15. h4 {[%emt 0:07:13]} Nxb3+ {[%emt 0:10:37]} 16. Nxb3 {[%emt 0:01:35]} Qc7 {[%emt 0:01:33]} 17. f4 {[%emt 0:07:58]} Nc5 {[%emt 0:06:15]} 18. Bd4 {[%emt 0:12:34]} Nxb3+ {[%emt 0:04:04]} 19. cxb3 {[%emt 0:00:03]} e5 {[%emt 0:00:19]} 20. Be3 {[%emt 0:01:12]} Bxe4 {[%emt 0:01:33]} 21. Bb6 {[%emt 0:00:10]} Qxb6 {[%emt 0:00:04]} 22. Qxe4 {[%emt 0:00:06]} Rac8 {[%emt 0:14:02]} 23. Kb1 {[%emt 0:00:41]} Kh8 {[%emt 0:04:41]} 24. Nd5 {[%emt 0:03:46]} Qb7 {[%emt 0:00:11]} 25. f5 {[%emt 0:00:52]} g6 {[%emt 0:04:21]} 26. f6 {[%emt 0:02:22]} Bd8 {[%emt 0:00:09]} 27. h5 {[%emt 0:00:12]} Rg8 {[%emt 0:01:15]} 28. hxg6 {[%emt 0:00:08]} fxg6 {[%emt 0:02:06]} 29. Rxh7+ {[%emt 0:01:51]} Qxh7 {[%emt 0:00:04]} 30. Rh1 {[%emt 0:00:09]} Rf8 {[%emt 0:00:56]} 31. Rxh7+ {[%emt 0:00:08]} Kxh7 {[%emt 0:00:01]} 32. Qh4+ {[%emt 0:00:11]} Kg8 {[%emt 0:00:05]} 33. Qh6 {[%emt 0:00:17]} Kf7 {[%emt 0:00:05]} 34. Qg7+ {[%emt 0:00:21]} Ke6 {[%emt 0:01:21]} 35. Qxf8 {[%emt 0:01:29]} Kxd5 {[%emt 0:00:01]} 36. Qg8+ {[%emt 0:00:38]} Kd4 {[%emt 0:00:08]} 37. f7 {[%emt 0:00:27]} Bxg5 {[%emt 0:00:38]} 38. Qxc8 {[%emt 0:00:11]} Bh6 {[%emt 0:00:04]} 39. Qh8 {[%emt 0:07:32]} Kd3 {[%emt 0:00:14]} 40. Qxh6 {[%emt 0:00:00]} e4 {[%emt 0:00:00]} 41. f8=Q {[%emt 0:00:00]} Ke2 {[%emt 0:00:04]} 42. Qh2+ {[%emt 0:00:00]} Kd3 {[%emt 0:00:06]} 43. Qfxd6+ {[%emt 0:00:00]} Ke3 {[%emt 0:00:07]} 44. Qdf4+ {[%emt 0:00:00]} Kd4 {[%emt 0:00:13]} 45. Qhd2+ {[%emt 0:00:00]} Kc5 {[%emt 0:00:09]} 46. Qc7# {[%emt 0:00:00]} 1-0

[Event "FIDE WCCC Open-10 2024"]
[Site "Montesilvano"]
[Date "2024.11.18"]
[Round "4.21"]
[White "Seo, Juwon"]
[Black "Chakhalov, Mikael"]
[Result "1-0"]
[ECO "B33"]
[WhiteElo "1721"]
[BlackElo "1962"]
[Annotator "RC"]
[PlyCount "79"]
[EventDate "2024.11.18"]
[EventType "swiss"]
[EventCountry "ITA"]
[SourceTitle "playchess.com"]
[Source "ChessBase"]
[SourceQuality "1"]
[TimeControl "5400+30"]

1. e4 {[%emt 0:00:10]} c5 {[%emt 0:00:06]} 2. Nf3 {[%emt 0:00:09]} Nc6 {[%emt 0:00:03]} 3. d4 {[%emt 0:00:10]} cxd4 {[%emt 0:00:04]} 4. Nxd4 {[%emt 0:00:12]} Nf6 {[%emt 0:00:05]} 5. Nc3 {[%emt 0:00:13]} e5 {[%emt 0:00:03]} 6. Ndb5 {[%emt 0:00:11]} d6 {[%emt 0:00:04]} 7. Bg5 {[%emt 0:00:24]} a6 {[%emt 0:00:14]} 8. Na3 {[%emt 0:01:26]} b5 {[%emt 0:00:03]} 9. Nd5 {[%emt 0:00:14]} Be7 {[%emt 0:00:09]} 10. Bxf6 {[%emt 0:00:11]} Bxf6 {[%emt 0:00:12]} 11. c3 {[%emt 0:00:11]} Rb8 {[%emt 0:01:20]} 12. Nc2 {[%emt 0:01:02]} Bg5 {[%emt 0:00:15]} 13. a4 {[%emt 0:03:41]} bxa4 {[%emt 0:01:13]} 14. Ncb4 {[%emt 0:00:46]} Nxb4 {[%emt 0:00:08]} 15. Nxb4 {[%emt 0:00:14]} Bd7 {[%emt 0:00:25]} 16. Bxa6 {[%emt 0:13:09]} O-O {[%emt 0:16:23]} 17. O-O {[%emt 0:12:34]} Rb6 {[%emt 0:08:31]} 18. Bc4 {[%emt 0:05:35]} Bf4 {[%emt 0:12:54]} 19. Qe2 {[%emt 0:13:09]} d5 {[%emt 0:23:07]} 20. Nxd5 {[%emt 0:08:29]} Rh6 {[%emt 0:02:42]} 21. Nxf4 {[%emt 0:05:30]} exf4 {[%emt 0:00:02]} 22. g3 {[%emt 0:09:28]} Qg5 {[%emt 0:08:14]} 23. Qd3 {[%emt 0:14:35]} Qh5 {[%emt 0:06:55]} 24. h4 {[%emt 0:00:59]} Qg4 {[%emt 0:01:22]} 25. Rfd1 {[%emt 0:05:02]} Bc6 {[%emt 0:00:10]} 26. Bd5 {[%emt 0:03:46]} Bxd5 {[%emt 0:01:53]} 27. exd5 {[%emt 0:00:10]} f3 {[%emt 0:00:48]} 28. Qf1 {[%emt 0:00:20]} Rxh4 {[%emt 0:00:49]} 29. Rd4 {[%emt 0:00:09]} Qxd4 {[%emt 0:03:37]} 30. cxd4 {[%emt 0:00:04]} Rxd4 {[%emt 0:00:08]} 31. Rd1 {[%emt 0:00:21]} Rb4 {[%emt 0:00:45]} 32. Qa6 {[%emt 0:00:40]} Rxb2 {[%emt 0:00:44]} 33. Qxa4 {[%emt 0:00:08]} Rd8 {[%emt 0:01:10]} 34. d6 {[%emt 0:00:15]} Rb6 {[%emt 0:00:45]} 35. Qa5 {[%emt 0:00:35]} Rbb8 {[%emt 0:00:14]} 36. d7 {[%emt 0:00:07]} h6 {[%emt 0:00:11]} 37. Qc7 {[%emt 0:00:06]} Kf8 {[%emt 0:00:41]} 38. Qxb8 {[%emt 0:00:54]} Rxb8 {[%emt 0:00:12]} 39. d8=Q+ {[%emt 0:00:05]} Rxd8 {[%emt 0:00:05]} 40. Rxd8+ {[%emt 0:00:04]} 1-0

[Event "FIDE WCCC Open-10 2024"]
[Site "Montesilvano"]
[Date "2024.11.18"]
[Round "4.21"]
[White "Wu, Chenyu"]
[Black "Chkhartishvili, Lazare"]
[Result "0-1"]
[ECO "E52"]
[WhiteElo "1503"]
[BlackElo "1836"]
[Annotator "NA RC"]
[PlyCount "88"]
[EventDate "2024.11.18"]
[EventType "swiss"]
[EventCountry "ITA"]
[SourceTitle "playchess.com"]
[Source "ChessBase"]
[SourceQuality "1"]
[TimeControl "5400+30"]

1. d4 {[%emt 0:00:06]} Nf6 {[%emt 0:00:05]} 2. c4 {[%emt 0:00:06]} e6 {[%emt 0:00:05]} 3. Nc3 {[%emt 0:00:06]} Bb4 {[%emt 0:00:11]} 4. e3 {[%emt 0:00:14]} O-O {[%emt 0:00:58]} 5. Nf3 {[%emt 0:00:09]} d5 {[%emt 0:00:07]} 6. Bd3 {[%emt 0:00:41]} b6 {[%emt 0:01:03]} 7. O-O {[%emt 0:00:12]} Bb7 {[%emt 0:03:27]} 8. a3 {[%emt 0:00:19]} Bxc3 {[%emt 0:00:56]} 9. bxc3 {[%emt 0:00:08]} Nbd7 {[%emt 0:00:03]} 10. cxd5 {[%emt 0:02:19]} exd5 {[%emt 0:02:23]} 11. a4 {[%emt 0:03:09]} a5 {[%emt 0:03:46]} 12. Qe2 {[%emt 0:04:03]} Ne4 {[%emt 0:01:34]} 13. Bxe4 {[%emt 0:02:38]} dxe4 {[%emt 0:01:09]} 14. Nd2 {[%emt 0:00:23]} Nf6 {[%emt 0:08:21]} 15. c4 {[%emt 0:02:59]} Qd7 {[%emt 0:02:14]} 16. Bb2 {[%emt 0:03:53]} Ba6 {[%emt 0:08:42]} 17. Qd1 {[%emt 0:02:59]} c6 {[%emt 0:09:45]} 18. Qb3 {[%emt 0:05:13]} Rab8 {[%emt 0:04:00]} 19. Rfd1 {[%emt 0:03:28]} Rfd8 {[%emt 0:02:28]} 20. Qc3 {[%emt 0:01:25]} Qe6 {[%emt 0:02:16]} 21. Nb3 {[%emt 0:04:39]} Bxc4 {[%emt 0:00:46]} 22. Nd2 {[%emt 0:01:10]} Bd5 {[%emt 0:05:09]} 23. Rac1 {[%emt 0:00:43]} Rd7 {[%emt 0:07:28]} 24. Ba3 {[%emt 0:01:38]} Ne8 {[%emt 0:01:48]} 25. Rb1 {[%emt 0:01:51]} Rdd8 {[%emt 0:02:47]} 26. Rb2 {[%emt 0:03:03]} Nf6 {[%emt 0:04:26]} 27. Rdb1 {[%emt 0:00:31]} Nd7 {[%emt 0:00:14]} 28. f3 {[%emt 0:07:34]} f5 {[%emt 0:03:15]} 29. fxe4 {[%emt 0:01:12]} fxe4 {[%emt 0:00:01]} 30. Nf1 {[%emt 0:01:11]} Bc4 {[%emt 0:01:11]} 31. Ng3 {[%emt 0:01:20]} Bd3 {[%emt 0:00:28]} 32. Rc1 {[%emt 0:00:08]} Rdc8 {[%emt 0:14:07]} 33. Nh5 {[%emt 0:00:27]} Qh6 {[%emt 0:05:07]} 34. Nf4 {[%emt 0:00:15]} Ba6 {[%emt 0:01:33]} 35. Qb3+ {[%emt 0:01:21]} Kh8 {[%emt 0:00:21]} 36. Qf7 {[%emt 0:01:47]} Rb7 {[%emt 0:03:36]} 37. Qf5 {[%emt 0:00:47]} Re8 {[%emt 0:01:20]} 38. Rbc2 {[%emt 0:02:29]} Rc7 {[%emt 0:01:14]} 39. Rc3 {[%emt 0:04:23]} b5 {[%emt 0:01:00]} 40. axb5 {[%emt 0:00:17]} Bxb5 {[%emt 0:00:01]} 41. Ne6 {[%emt 0:00:27]} Qxe6 {[%emt 0:00:18]} 42. Qf4 {[%emt 0:00:22]} Rcc8 {[%emt 0:00:21]} 43. Rc5 {[%emt 0:00:34]} Nxc5 {[%emt 0:00:16]} 44. Rxc5 {[%emt 0:00:07]} Rf8 {[%emt 0:00:10]} 0-1